fUSD/lending_fUSD_20260129
["ID","MTS","AMOUNT","RATE_DAILY","PERIOD"]
[403999356,1769705094128,10000.01,0.00013552,2]
[403999357,1769705094161,448488.146,0.00013552,2]
[403999359,1769705098156,-500.0,0.00013698,2]
[403999360,1769705098195,-500.0,0.00013698,2]
[403999364,1769705115151,2282.2358,0.00013552,2]
[403999365,1769705121570,5717.7742,0.00013552,2]
[403999366,1769705121592,10000.01,0.00013552,2]
[403999367,1769705121615,10000.01,0.00013552,2]
[403999368,1769705121639,10000.01,0.00013552,2]
[403999369,1769705121662,7972.8249,0.00013552,2]
[403999370,1769705127742,2027.1851,0.00013552,2]
[403999371,1769705127763,472.8149,0.00013552,2]
[403999373,1769705219362,559.79955474,0.00013662,2]
[403999374,1769705228896,500.0,0.00013698,2]
[403999375,1769705229145,500.0,0.00013698,2]
[403999376,1769705250894,7967.39554526,0.00013663,2]
[403999377,1769705250918,10000.01,0.00013663,2]
[403999378,1769705250942,10000.01,0.00013663,2]
[403999379,1769705250965,10000.01,0.00013663,2]
[403999380,1769705250989,10000.01,0.00013663,2]
[403999381,1769705251012,10000.01,0.00013663,2]
[403999382,1769705251036,10000.01,0.00013663,2]
[403999383,1769705251059,10000.01,0.00013663,2]
[403999384,1769705251082,10000.01,0.00013663,2]
[403999385,1769705251105,10000.01,0.00013663,2]
[403999388,1769705281888,-300.0,0.00013662,2]
[403999389,1769705282258,-150.0,0.00013662,2]
[403999391,1769705286425,-263.97014249,0.00013651,2]
[403999392,1769705287567,500.0,0.00013651,2]
[403999393,1769705287606,500.0,0.00013651,2]
[403999394,1769705287770,454.55242676,0.00013651,2]
[403999395,1769705288148,8017.51728826,7.945e-05,2]
[403999396,1769705288174,178.06739374,7.945e-05,2]
[403999397,1769705293525,500.0,0.00013651,2]
[403999398,1769705293572,500.0,0.00013651,2]
[403999399,1769705293611,500.0,0.00013651,2]
[403999400,1769705293649,500.0,0.00013651,2]
[403999401,1769705293686,500.0,0.00013651,2]
[403999402,1769705293725,500.0,0.00013651,2]
[403999403,1769705293764,500.0,0.00013651,2]
[403999404,1769705293805,500.0,0.00013651,2]
[403999405,1769705293846,500.0,0.00013651,2]
[403999406,1769705293889,500.0,0.00013651,2]
[403999407,1769705293937,500.0,0.00013651,2]
[403999408,1769705293975,500.0,0.00013651,2]
[403999409,1769705294013,500.0,0.00013651,2]
[403999410,1769705294051,500.0,0.00013651,2]
[403999411,1769705294093,500.0,0.00013651,2]
[403999412,1769705294131,500.0,0.00013651,2]
[403999413,1769705294173,500.0,0.00013651,2]
[403999414,1769705294210,500.0,0.00013651,2]
[403999415,1769705294285,500.0,0.00013651,2]
[403999416,1769705294323,321.94260626,0.00013651,2]
[403999417,1769705294347,178.05739374,0.00013651,2]
[403999418,1769705294392,500.0,0.00013651,2]
[403999419,1769705294429,500.0,0.00013651,2]
[403999420,1769705294466,500.0,0.00013651,2]
[403999421,1769705294503,500.0,0.00013651,2]
[403999422,1769705294542,500.0,0.00013651,2]
[403999423,1769705294587,500.0,0.00013651,2]
[403999424,1769705294624,500.0,0.00013651,2]
[403999425,1769705294666,500.0,0.00013651,2]
[403999426,1769705294708,500.0,0.00013651,2]
[403999427,1769705294750,500.0,0.00013651,2]
[403999428,1769705294788,500.0,0.00013651,2]
[403999429,1769705294829,500.0,0.00013651,2]
[403999430,1769705294893,500.0,0.00013651,2]
[403999431,1769705294936,500.0,0.00013651,2]
[403999432,1769705295386,500.0,0.00013651,2]
[403999433,1769705295448,500.0,0.00013651,2]
[403999434,1769705295487,500.0,0.00013651,2]
[403999435,1769705295537,500.0,0.00013651,2]
[403999436,1769705295576,406.21365456,0.00013651,2]
[403999437,1769705295637,415.7389517,0.00013651,2]
[403999438,1769705295660,84.2610483,0.00013651,2]
[403999439,1769705295710,500.0,0.00013651,2]
[403999440,1769705295754,500.0,0.00013651,2]
[403999441,1769705295792,500.0,0.00013651,2]
[403999442,1769705295827,500.0,0.00013651,2]
[403999443,1769705295872,500.0,0.00013651,2]
[403999444,1769705308434,-2626.04677261,0.00013663,2]
[403999445,1769705308462,-10000.01,0.00013663,2]
[403999446,1769705308621,-10000.01,0.00013663,2]
[403999447,1769705308767,-10000.01,0.00013663,2]
[403999448,1769705309288,-10000.01,0.00013663,2]
[403999449,1769705309427,-10000.01,0.00013663,2]
[403999450,1769705309555,-10000.01,0.00013663,2]
[403999451,1769705309665,-10000.01,0.00013663,2]
[403999452,1769705324948,161.0,0.00013526,2]
[403999453,1769705401710,1200.0,0.00013662,2]
[403999455,1769705419122,220.44060807,0.00013651,2]
[403999462,1769705432076,-27272.37138213,0.00013663,2]
[403999463,1769705432087,-250.0,0.00013681,2]
[403999464,1769705432096,-526.08520541,0.00013698,2]
[403999465,1769705432106,-233.22890067,0.00013698,2]
[403999466,1769705432115,-250.0,0.0001373,2]
[403999467,1769705432129,-195.0,0.0001373,2]
[403999468,1769705432138,-195.0,0.00013762,2]
[403999469,1769705432148,-600.0,0.00013762,2]
[403999470,1769705432157,-9999.99,0.00013763,2]
[403999471,1769705432167,-150.99,0.00013763,2]
[403999472,1769705432177,-3472.87,0.00013763,2]
[403999473,1769705432186,-1181.94,0.00013763,2]
[403999474,1769705432196,-5245.82,0.00013763,2]
[403999475,1769705432205,-1723.06,0.00013763,2]
[403999476,1769705432215,-150.99,0.00013763,2]
[403999477,1769705432224,-9999.99,0.00013763,2]
[403999478,1769705432235,-161.0,0.00013821,2]
[403999479,1769705432244,-600.0,0.00013867,2]
[403999480,1769705432254,-558.50045609,0.00013867,2]
[403999481,1769705432264,-150.26821108,0.00014152,2]
[403999482,1769705432275,-1906.67,0.0001419,2]
[403999483,1769705432285,-559.79955472,0.00014206,2]
[403999484,1769705432296,-1600.0,0.0001423,2]
[403999485,1769705432306,-3240.0,0.00014341,2]
[403999486,1769705432315,-3709.99,0.00014395,2]
[403999487,1769705432325,-5883.23,0.00014479,2]
[403999488,1769705432334,-165.13,0.00014487,2]
[403999489,1769705432344,-163.0,0.00014512,2]
[403999490,1769705432353,-1000.0,0.00014543,2]
[403999491,1769705432363,-7073.87,0.0001462,2]
[403999492,1769705432372,-559.79955472,0.0001475,2]
[403999493,1769705432382,-255.0,0.00014782,2]
[403999494,1769705432392,-6304.4353,0.0001492,2]
[403999495,1769705432403,-1458.4587,0.0001492,2]
[403999496,1769705432413,-1731.28,0.00014946,2]
[403999497,1769705432423,-260.55859869,0.00015004,2]
[403999498,1769705432432,-1680.0,0.00015028,2]
[403999499,1769705432441,-250.0,0.00015029,2]
[403999500,1769705432451,-195.0,0.00015029,2]
[403999501,1769705432460,-17891.12,0.00015045,2]
[403999503,1769705432469,-2219.796418,0.00015114,2]
[403999505,1769705432479,-600.0,0.00015138,2]
[403999506,1769705432488,-195.0,0.00015138,2]
[403999507,1769705432498,-166.97,0.00015158,2]
[403999508,1769705432507,-5288.24145634,0.0001521,2]
[403999509,1769705432522,-540.54142778,0.0001521,2]
[403999511,1769705432533,-473.53469007,0.0001521,2]
[403999514,1769705432552,-448.54201431,0.0001521,2]
[403999516,1769705432563,-2389.94928522,0.0001521,2]
[403999518,1769705432578,-3954.798,0.0001521,2]
[403999520,1769705432589,-421.25,0.0001521,2]
[403999522,1769705432600,-19753.83892628,0.0001521,2]
[403999523,1769705432609,-921.65241377,0.0001521,2]
[403999524,1769705432620,-78.34758623,0.0001521,2]
[403999525,1769705432629,-165.13,0.00015292,2]
[403999526,1769705432638,-151.0,0.00015386,2]
[403999527,1769705432648,-151.0,0.00015423,2]
[403999528,1769705432658,-151.0,0.00015423,2]
[403999529,1769705432667,-90.80135299,0.00015556,2]
[403999532,1769705438088,-670.7593212,0.00015556,2]
[403999533,1769705438100,-2344.66072333,0.00015556,2]
[403999534,1769705438251,-7159.85860248,0.00015556,2]
[403999535,1769705438262,-211.1641834,0.00015883,2]
[403999536,1769705438274,-1288.8358166,0.00015883,2]
[403999537,1769705438284,-500.0,0.00015972,2]
[403999538,1769705438293,-500.0,0.00015972,2]
[403999539,1769705438303,-500.0,0.00015973,2]
[403999540,1769705438312,-500.0,0.00015973,2]
[403999541,1769705438322,-500.0,0.00015973,2]
[403999542,1769705438331,-502.95752889,0.00015973,2]
[403999543,1769705438341,-500.0,0.00015973,2]
[403999544,1769705438351,-500.0,0.00015973,2]
[403999545,1769705438361,-500.0,0.00015973,2]
[403999546,1769705438370,-500.0,0.00015973,2]
[403999547,1769705438380,-433.0,0.00015998,2]
[403999548,1769705438389,-1600.0,0.00016008,2]
[403999549,1769705438398,-142.54306303,0.00016063,2]
[403999678,1769705440088,-457.66987191,0.00016063,2]
[403999679,1769705440143,-15326.61639768,0.00016063,2]
[403999680,1769705440197,-5348.73804461,0.00016063,2]
[403999681,1769705440212,-165.13,0.00016097,2]
[403999682,1769705440227,-2500.0,0.00016104,2]
[403999683,1769705440238,-4429.64,0.00016116,2]
[403999684,1769705440248,-3021.9228,0.00016137,2]
[403999685,1769705440258,-209.40437684,0.00016163,2]
[403999686,1769705440267,-500.0,0.00016163,2]
[403999687,1769705440276,-500.0,0.00016163,2]
[403999688,1769705440286,-500.0,0.00016163,2]
[403999689,1769705440295,-359.96661697,0.00016163,2]
[403999690,1769705440305,-500.0,0.00016163,2]
[403999691,1769705440314,-150.0,0.00016204,2]
[403999692,1769705440324,-217.15233878,0.00016218,2]
[403999693,1769705440333,-2738.23232448,0.00016267,2]
[403999694,1769705440345,-503.0,0.00016267,2]
[403999695,1769705440357,-18034.33505274,0.00016267,2]
[403999696,1769705440366,-225.18697532,0.00016273,2]
[403999697,1769705440375,-233.51889341,0.00016328,2]
[403999698,1769705440384,-1000.0,0.00016361,2]
[403999699,1769705440395,-242.15909246,0.00016383,2]
[403999700,1769705440404,-500.0,0.00016437,2]
[403999701,1769705440413,-500.0,0.00016437,2]
[403999702,1769705440422,-500.0,0.00016437,2]
[403999703,1769705440432,-500.0,0.00016437,2]
[403999704,1769705440441,-251.11897888,0.00016438,2]
[403999705,1769705440453,-500.0,0.00016438,2]
[403999706,1769705440462,-477.5181344,0.00016438,2]
[403999707,1769705440472,-2665.68143375,0.00016438,2]
[403999708,1769705440481,-2665.68143375,0.00016438,2]
[403999709,1769705440491,-2665.68143375,0.00016438,2]
[403999710,1769705440500,-2665.68143375,0.00016438,2]
[403999711,1769705440510,-2665.68143375,0.00016438,2]
[403999712,1769705440519,-2665.68143375,0.00016438,2]
[403999713,1769705440528,-2665.68143375,0.00016438,2]
[403999715,1769705440537,-2665.68143375,0.00016438,2]
[403999717,1769705440547,-2665.68143375,0.00016438,2]
[403999718,1769705440556,-2665.68143375,0.00016438,2]
[403999720,1769705440565,-2665.68143375,0.00016438,2]
[403999721,1769705440575,-2665.68143375,0.00016438,2]
[403999722,1769705440584,-2665.68143375,0.00016438,2]
[403999723,1769705440593,-2665.68143375,0.00016438,2]
[403999725,1769705440602,-2665.68143375,0.00016438,2]
[403999726,1769705440612,-2665.68143375,0.00016438,2]
[403999728,1769705440621,-2665.68143375,0.00016438,2]
[403999730,1769705440630,-2665.68143375,0.00016438,2]
[403999732,1769705440639,-2665.68143375,0.00016438,2]
[403999733,1769705440649,-2665.68143375,0.00016438,2]
[403999734,1769705440658,-2665.68143375,0.00016438,2]
[403999735,1769705440667,-2665.68143375,0.00016438,2]
[403999736,1769705440677,-2665.68143375,0.00016438,2]
[403999737,1769705440686,-2665.68143375,0.00016438,2]
[403999738,1769705440695,-2665.68143375,0.00016438,2]
[403999739,1769705440705,-2665.68143375,0.00016438,2]
[403999740,1769705440714,-2665.68143375,0.00016438,2]
[403999741,1769705440723,-2665.68143375,0.00016438,2]
[403999742,1769705440732,-2665.68143375,0.00016438,2]
[403999743,1769705440741,-2665.68143375,0.00016438,2]
[403999744,1769705440750,-2665.68143375,0.00016438,2]
[403999745,1769705440760,-2665.68143375,0.00016438,2]
[403999746,1769705440772,-2665.68143375,0.00016438,2]
[403999747,1769705440781,-2665.68143375,0.00016438,2]
[403999748,1769705440791,-2665.68143375,0.00016438,2]
[403999749,1769705440800,-2665.68143375,0.00016438,2]
[403999750,1769705440810,-2665.68143375,0.00016438,2]
[403999751,1769705440819,-2665.68143375,0.00016438,2]
[403999752,1769705440829,-2665.68143375,0.00016438,2]
[403999753,1769705440838,-2665.68143375,0.00016438,2]
[403999754,1769705440848,-2665.68143375,0.00016438,2]
[403999755,1769705440858,-2665.68143375,0.00016438,2]
[403999756,1769705440867,-2665.68143375,0.00016438,2]
[403999757,1769705440876,-2665.68143375,0.00016438,2]
[403999758,1769705440885,-2665.68143375,0.00016438,2]
[403999759,1769705440899,-2665.68143375,0.00016438,2]
[403999760,1769705440908,-2665.68143375,0.00016438,2]
[403999761,1769705440917,-2665.68143375,0.00016438,2]
[403999762,1769705440928,-2665.68143375,0.00016438,2]
[403999763,1769705440940,-2665.68143375,0.00016438,2]
[403999764,1769705440951,-2665.68143375,0.00016438,2]
[403999765,1769705440961,-2665.68143375,0.00016438,2]
[403999766,1769705440973,-2665.68143375,0.00016438,2]
[403999767,1769705440983,-2665.68143375,0.00016438,2]
[403999768,1769705440993,-2665.68143375,0.00016438,2]
[403999769,1769705441003,-2665.68143375,0.00016438,2]
[403999770,1769705441013,-2665.68143375,0.00016438,2]
[403999771,1769705441023,-2665.68143375,0.00016438,2]
[403999772,1769705441032,-2665.68143375,0.00016438,2]
[403999773,1769705441042,-2665.68143375,0.00016438,2]
[403999774,1769705441053,-2665.68143375,0.00016438,2]
[403999775,1769705441063,-2665.68143375,0.00016438,2]
[403999776,1769705441072,-2665.68143375,0.00016438,2]
[403999777,1769705441081,-965.58,0.00016438,2]
[403999778,1769705441091,-227.11,0.00016438,2]
[403999779,1769705441100,-800.0,0.00016438,2]
[403999780,1769705441110,-21275.56737722,0.00016471,2]
[403999781,1769705441120,-260.4103811,0.00016493,2]
[403999782,1769705441129,-500.0,0.00016493,2]
[403999783,1769705441139,-1000.0,0.00016521,2]
[403999784,1769705441152,-1000.0,0.00016521,2]
[403999785,1769705441162,-1000.0,0.00016521,2]
[403999786,1769705441171,-1000.0,0.00016521,2]
[403999787,1769705441180,-1000.0,0.00016521,2]
[403999788,1769705441190,-1000.0,0.00016521,2]
[403999789,1769705441199,-1000.0,0.00016521,2]
[403999790,1769705441208,-2351.0,0.00016531,2]
[403999791,1769705441218,-270.0455652,0.00016548,2]
[403999792,1769705441227,-280.03725112,0.00016603,2]
[403999793,1769705441237,-290.39862941,0.00016658,2]
[403999794,1769705441247,-21275.56737722,0.00016675,2]
[403999795,1769705441258,-16014.64063511,0.000167,2]
[403999796,1769705441267,-965.58,0.00016712,2]
[403999797,1769705441276,-301.1433787,0.00016713,2]
[403999798,1769705441286,-10000.0,0.000168,4]
[403999799,1769705441295,-16014.64063509,0.00016833,2]
[403999800,1769705441304,-166.97,0.00016842,2]
[403999801,1769705441314,-21275.56737722,0.00016879,2]
[403999802,1769705441323,-30571.70998242,0.0001689,2]
[403999803,1769705441333,-165.13,0.00016902,2]
[403999804,1769705441342,-16014.64063509,0.00016967,2]
[403999805,1769705441351,-965.58,0.00016986,2]
[403999806,1769705441361,-250.0,0.00017,2]
[403999807,1769705441371,-1500.0,0.00017068,2]
[403999808,1769705441380,-226.99112244,0.00017068,2]
[403999809,1769705441389,-1413.89753302,0.00017068,2]
[403999810,1769705441399,-1516.45192786,0.00017068,2]
[403999811,1769705441409,-504.26926601,0.00017068,2]
[403999812,1769705441419,-1500.0,0.00017068,2]
[403999813,1769705441429,-21275.56737722,0.00017084,2]
[403999814,1769705441439,-16014.64063509,0.000171,2]
[403999815,1769705441448,-500.0,0.00017128,2]
[403999816,1769705441457,-500.0,0.00017128,2]
[403999817,1769705441466,-500.0,0.00017128,2]
[403999818,1769705441475,-500.0,0.00017128,2]
[403999819,1769705441485,-500.0,0.00017156,2]
[403999820,1769705441494,-531.24026795,0.00017156,2]
[403999821,1769705441503,-500.0,0.00017156,2]
[403999822,1769705441513,-240.72,0.00017157,7]
[403999823,1769705441522,-5888.0,0.00017171,2]
[403999824,1769705441536,-237.0,0.00017202,2]
[403999825,1769705441546,-16014.64063509,0.00017233,2]
[403999826,1769705441555,-965.58,0.0001726,2]
[403999827,1769705441565,-21275.56737722,0.00017288,2]
[403999828,1769705441575,-736.0,0.0001731,2]
[403999829,1769705441584,-5888.0,0.00017336,2]
[403999830,1769705441594,-16014.64063509,0.00017367,2]
[403999831,1769705441603,-303.0,0.0001739,2]
[403999832,1769705441612,-1660.17763539,0.00017426,2]
[403999833,1769705441622,-21275.56737722,0.00017492,2]
[403999834,1769705441631,-500.0,0.00017499,2]
[403999835,1769705441640,-500.0,0.00017499,2]
[403999836,1769705441649,-500.0,0.00017499,2]
[403999837,1769705441659,-500.0,0.00017499,2]
[403999838,1769705441668,-5888.0,0.00017499,2]
[403999839,1769705441677,-16014.64063509,0.000175,2]
[403999840,1769705441686,-2942.69,0.00017521,2]
[403999841,1769705441696,-5888.0,0.00017526,2]
[403999842,1769705441705,-965.58,0.00017534,2]
[403999843,1769705441714,-1600.0,0.00017534,2]
[403999844,1769705441723,-369.0,0.0001755,2]
[403999845,1769705441732,-4777.0,0.0001756,2]
[403999846,1769705441741,-5888.0,0.0001761,2]
[403999847,1769705441750,-500.0,0.00017616,2]
[403999848,1769705441760,-2000.0,0.00017616,2]
[403999849,1769705441769,-2000.0,0.00017616,2]
[403999850,1769705441779,-16014.64063509,0.00017633,2]
[403999851,1769705441789,-602.66686418,0.0001764,2]
[403999852,1769705441798,-500.0,0.00017653,2]
[403999853,1769705441808,-500.0,0.00017653,2]
[403999854,1769705441817,-500.0,0.00017653,2]
[403999855,1769705441826,-500.0,0.00017653,2]
[403999856,1769705441835,-4777.0,0.0001768,2]
[403999857,1769705441845,-21275.56737722,0.00017696,2]
[403999858,1769705441855,-12178.4165062,0.000177,3]
[403999859,1769705441865,-4777.0,0.00017703,2]
[403999860,1769705441874,-165.13,0.00017707,2]
[403999861,1769705441884,-157.80844681,0.00017707,2]
[403999862,1769705441895,-16014.64063509,0.00017767,2]
[403999863,1769705441907,-25000.0,0.00017768,3]
[403999864,1769705441916,-25000.0,0.00017777,3]
[403999865,1769705441926,-25000.0,0.00017786,3]
[403999866,1769705441935,-1600.0,0.00017787,2]
[403999867,1769705441946,-25000.0,0.00017794,3]
[403999868,1769705441955,-25000.0,0.00017803,3]
[403999869,1769705441964,-157.8084468,0.00017804,2]
[403999870,1769705441975,-965.58,0.00017808,2]
[403999871,1769705441984,-25000.0,0.00017812,3]
[403999872,1769705441994,-8342.09633094,0.0001782,2]
[403999873,1769705442003,-25000.0,0.00017821,3]
[403999874,1769705442013,-25000.0,0.0001783,3]
[403999875,1769705442024,-25000.0,0.0001783,3]
[403999876,1769705442034,-25000.0,0.00017838,3]
[403999877,1769705442043,-25000.0,0.00017838,3]
[403999878,1769705442053,-245.52915167,0.00017846,2]
[403999879,1769705442062,-152.3,0.00017846,2]
[403999880,1769705442072,-417.73,0.00017846,2]
[403999881,1769705442081,-500.0,0.00017846,2]
[403999882,1769705442091,-25000.0,0.00017847,3]
[403999883,1769705442100,-25000.0,0.00017847,3]
[403999884,1769705442109,-25000.0,0.00017856,3]
[403999885,1769705442118,-25000.0,0.00017856,3]
[403999886,1769705442127,-25000.0,0.00017865,3]
[403999887,1769705442136,-25000.0,0.00017865,3]
[403999888,1769705442146,-152.3,0.00017872,2]
[403999889,1769705442156,-25000.0,0.00017874,3]
[403999890,1769705442165,-25000.0,0.00017874,3]
[403999891,1769705442174,-25000.0,0.00017882,3]
[403999892,1769705442185,-25000.0,0.00017882,3]
[403999893,1769705442194,-152.3,0.0001789,2]
[403999894,1769705442205,-25000.0,0.00017891,3]
[403999895,1769705442215,-25000.0,0.00017891,3]
[403999896,1769705442224,-4777.0,0.00017894,2]
[403999897,1769705442233,-500.0,0.00017899,2]
[403999898,1769705442243,-500.0,0.00017899,2]
[403999899,1769705442253,-500.0,0.00017899,2]
[403999900,1769705442262,-500.0,0.00017899,2]
[403999901,1769705442272,-500.0,0.00017899,2]
[403999902,1769705442281,-25000.0,0.000179,3]
[403999903,1769705442290,-10000.0,0.000179,2]
[403999904,1769705442300,-157.8084468,0.000179,2]
[403999905,1769705442309,-25000.0,0.000179,3]
[403999906,1769705442319,-5908.96051893,0.000179,2]
[403999907,1769705442329,-21275.56737722,0.000179,2]
[403999908,1769705442338,-16014.64063509,0.000179,2]
[403999909,1769705442347,-12673.82723928,0.000179,2]
[403999910,1769705442358,-7345.80987472,0.000179,2]
[403999911,1769705442367,-72759.52270356,0.000179,2]
[403999912,1769705442377,-1906.57829553,0.000179,3]
[403999913,1769705442386,-377.52161398,0.000179,2]
[403999914,1769705442396,-500.0,0.000179,2]
[403999915,1769705442405,-500.0,0.000179,2]
[403999916,1769705442416,-500.0,0.000179,2]
[403999917,1769705442426,-500.0,0.000179,2]
[403999918,1769705442435,-500.0,0.000179,2]
[403999919,1769705442444,-500.0,0.000179,2]
[403999920,1769705442453,-500.0,0.000179,2]
[403999921,1769705442462,-500.0,0.000179,2]
[403999922,1769705442472,-500.0,0.000179,2]
[403999923,1769705442480,-316.69388857,0.000179,2]
[403999924,1769705442489,-10052.0,0.000179,2]
[403999925,1769705442499,-7113.0,0.00017973,2]
[403999926,1769705442508,-494.98211284,0.00017973,2]
[403999927,1769705442517,-150.25668222,0.00017973,2]
[403999928,1769705442526,-500.0,0.00017973,2]
[403999929,1769705442536,-628.44291984,0.00017973,2]
[403999930,1769705442545,-500.0,0.00017973,2]
[403999931,1769705442554,-368.88723017,0.00017973,2]
[403999932,1769705442564,-500.0,0.00017973,2]
[403999933,1769705442573,-500.0,0.00017973,2]
[403999934,1769705442582,-500.0,0.00017973,2]
[403999935,1769705442591,-500.0,0.00017973,2]
[403999936,1769705442600,-500.0,0.00017973,2]
[403999937,1769705442610,-500.0,0.00017973,2]
[403999938,1769705442620,-500.0,0.00017973,2]
[403999939,1769705442630,-500.0,0.00017973,2]
[403999940,1769705442639,-500.0,0.00017973,2]
[403999941,1769705442648,-500.0,0.00017973,2]
[403999942,1769705442658,-500.0,0.00017973,2]
[403999943,1769705442667,-500.0,0.00017973,2]
[403999944,1769705442677,-500.0,0.00017973,2]
[403999945,1769705442686,-500.0,0.00017973,2]
[403999946,1769705442695,-500.0,0.00017973,2]
[403999947,1769705442704,-503.36004103,0.00017973,2]
[403999948,1769705442714,-160.32855491,0.00017973,2]
[403999949,1769705442724,-300.09,0.00017973,2]
[403999950,1769705442733,-500.0,0.00017973,2]
[403999951,1769705442742,-485.97916309,0.00017973,2]
[403999952,1769705442751,-500.0,0.00017973,2]
[403999953,1769705442760,-500.0,0.00017973,2]
[403999954,1769705442769,-500.0,0.00017973,2]
[403999955,1769705442778,-500.0,0.00017973,2]
[403999956,1769705442787,-500.0,0.00017973,2]
[403999957,1769705442796,-500.0,0.00017973,2]
[403999958,1769705442805,-500.0,0.00017973,2]
[403999959,1769705442814,-500.0,0.00017973,2]
[403999960,1769705442825,-167.92295852,0.00017973,2]
[403999961,1769705442836,-500.0,0.00017973,2]
[403999962,1769705442845,-500.0,0.00017973,2]
[403999963,1769705442854,-500.0,0.00017989,2]
[403999964,1769705442864,-500.0,0.00017989,2]
[403999966,1769705442874,-554.90775112,0.00017989,2]
[403999967,1769705442883,-500.0,0.00017989,2]
[403999968,1769705442894,-151.0,0.00017989,2]
[403999969,1769705442908,-152.3,0.00017989,2]
[403999970,1769705442918,-245.52915167,0.0001799,2]
[403999971,1769705442927,-245.52915167,0.0001799,2]
[403999972,1769705442938,-152.3,0.0001799,2]
[403999973,1769705442947,-152.3,0.0001799,2]
[403999974,1769705442956,-152.3,0.0001799,2]
[403999975,1769705442965,-152.3,0.0001799,2]
[403999976,1769705442974,-152.3,0.0001799,2]
[403999977,1769705442984,-152.3,0.0001799,2]
[403999978,1769705442993,-152.3,0.0001799,2]
[403999979,1769705443003,-152.3,0.0001799,2]
[403999980,1769705443012,-152.3,0.0001799,2]
[403999981,1769705443022,-152.3,0.0001799,2]
[403999982,1769705443032,-152.3,0.0001799,2]
[403999983,1769705443042,-152.3,0.0001799,2]
[403999984,1769705443051,-152.3,0.0001799,2]
[403999985,1769705443061,-152.3,0.0001799,2]
[403999986,1769705443071,-152.3,0.0001799,2]
[403999987,1769705443080,-152.3,0.0001799,2]
[403999988,1769705443090,-152.3,0.0001799,2]
[403999989,1769705443099,-152.3,0.0001799,2]
[403999990,1769705443109,-152.3,0.0001799,2]
[403999991,1769705443120,-152.3,0.0001799,2]
[403999992,1769705443130,-152.3,0.0001799,2]
[403999993,1769705443139,-152.3,0.0001799,2]
[403999994,1769705443149,-152.3,0.0001799,2]
[403999995,1769705443160,-152.3,0.0001799,2]
[403999996,1769705443169,-152.3,0.0001799,2]
[403999997,1769705443179,-152.3,0.0001799,2]
[403999998,1769705443188,-152.3,0.0001799,2]
[403999999,1769705443197,-151.0,0.00017997,2]
[404000000,1769705443207,-150.0,0.00017999,2]
[404000001,1769705443216,-189.60832948,0.00017999,2]
[404000002,1769705443225,-500.0,0.00017999,2]
[404000003,1769705443234,-500.0,0.00017999,2]
[404000004,1769705443244,-500.0,0.00017999,2]
[404000005,1769705443253,-647.66859598,0.00017999,2]
[404000006,1769705443262,-500.0,0.00017999,2]
[404000007,1769705443271,-500.0,0.00017999,2]
[404000008,1769705443281,-500.0,0.00017999,2]
[404000009,1769705443290,-500.0,0.00017999,2]
[404000010,1769705443300,-500.0,0.00017999,2]
[404000011,1769705443309,-500.0,0.00017999,2]
[404000012,1769705443318,-500.0,0.00017999,2]
[404000013,1769705443327,-394.32,0.00017999,2]
[404000014,1769705443336,-300.0,0.00017999,2]
[404000015,1769705443345,-300.0,0.00017999,2]
[404000016,1769705443355,-666.0,0.00017999,2]
[404000017,1769705443364,-300.0,0.00017999,2]